bitfinex-derivatives/quotes_SOLF0:USTF0_20241230
["timestamp","ask_amount","ask_price","bid_price","bid_amount"]
[1735583943950,2.5722,194.59,194.53,12.69105841]
[1735583944155,3.6,194.62,194.53,12.69105841]
[1735583944358,3.6,194.62,194.58,2.5722]
[1735583945555,3.6,194.62,194.52,2.9941]
[1735583945758,3.6,194.62,194.5,12.69105841]
[1735583945962,15.76215841,194.61,194.5,12.69105841]
[1735583946256,17.23285841,194.61,194.48,1.5917]
[1735583946757,17.23285841,194.61,194.51,2.5732]
[1735583947359,2.5727,194.56,194.51,2.5732]
[1735583947554,6.1727,194.56,194.52,2.5731]
[1735583948561,2.573,194.53,194.48,4.1652]
[1735583948761,2.573,194.53,194.48,1.5917]
[1735583949353,12.69105841,194.55,194.44,12.69105841]
[1735583949760,3.6,194.56,194.44,12.69105841]
[1735583949960,2.5728,194.54,194.44,12.69105841]
[1735583950261,3.6,194.56,194.5,2.5733]
[1735583951057,3.6,194.56,194.49,2.5735]
[1735583951258,3.6,194.56,194.44,12.69105841]
[1735583951672,2.5733,194.51,194.47,2.5737]
[1735583951963,3.6,194.5,194.41,12.69105841]
[1735583952156,3.6,194.49,194.38,12.69105841]
[1735583952556,2.5741,194.45,194.41,2.5744]
[1735583952755,3.6,194.49,194.38,12.69105841]
[1735583953360,2.574,194.46,194.42,2.5744]
[1735583953764,3.6,194.46,194.38,12.69105841]
[1735583954757,3.6,194.46,194.37,1.5219]
[1735583955665,3.6,194.46,194.35,12.69105841]
[1735583956264,3.6,194.46,194.37,2.575]
[1735583956761,2.5747,194.4,194.32,12.69105841]
[1735583956961,6.1747,194.4,194.32,12.69105841]
[1735583957369,2.575,194.38,194.32,12.69105841]
[1735583957567,3.6,194.4,194.29,14.23015841]
[1735583957866,3.6,194.4,194.29,1.5391]
[1735583958066,2.5751,194.37,194.29,1.5391]
[1735583958462,2.5751,194.37,194.32,2.5757]
[1735583958970,3.62,194.4,194.36,2.5751]
[1735583959171,3.62,194.4,194.29,14.23015841]
[1735583959562,6.1947,194.4,194.32,2.5757]
[1735583959769,3.62,194.4,194.29,14.23015841]
[1735583960271,2.5751,194.37,194.31,2.5757]
[1735583960475,2.5751,194.37,194.29,14.23015841]
[1735583961167,3.62,194.4,194.31,2.5758]
[1735583961974,3.62,194.4,194.3,2.576]
[1735583962174,12.69105841,194.38,194.26,12.69105841]
[1735583963270,12.69105841,194.38,194.25,1.4776]
[1735583963271,2.5761,194.29,194.25,1.4776]
[1735583963577,3.62,194.31,194.24,1.5195]
[1735583963776,3.62,194.31,194.22,1.4907]
[1735583963970,3.62,194.31,194.23,2.5769]
[1735583964166,3.62,194.31,194.2,12.69105841]
[1735583964371,2.5764,194.28,194.23,2.5768]
[1735583965374,12.69105841,194.29,194.17,12.69105841]
[1735583965778,2.5767,194.25,194.2,2.5772]
[1735583965978,3.62,194.24,194.2,2.5772]
[1735583966381,3.62,194.24,194.17,12.69105841]
[1735583966577,3.62,194.24,194.19,2.5774]
[1735583966778,3.62,194.24,194.17,12.69105841]
[1735583968287,6.1968,194.24,194.18,2.5776]
[1735583968685,3.62,194.24,194.17,12.69105841]
[1735583969084,3.62,194.24,194.16,3.0567]
[1735583969486,3.62,194.24,194.15,1.5691]
[1735583969686,3.62,194.24,194.08,3.0673]
[1735583969687,3.62,194.24,194.11,12.69105841]
[1735583970684,3.62,194.24,194.14,12.69105841]
[1735583970885,3.62,194.24,194.17,12.69105841]
[1735583971079,3.6,194.28,194.17,12.69105841]
[1735583971282,3.6,194.28,194.25,2.5766]
[1735583971777,12.69105841,194.33,194.28,2.5762]
[1735583971778,2.5757,194.33,194.28,2.5762]
[1735583971978,3.6,194.32,194.28,2.5762]
[1735583972187,3.6,194.32,194.23,12.69105841]
[1735583973487,3.6,194.32,194.25,2.5766]
[1735583973686,3.6,194.32,194.23,12.69105841]
[1735583975382,5.7651,194.34,194.28,2.5762]
[1735583975591,3.6,194.33,194.28,2.5762]
[1735583975989,3.6,194.4,194.26,3.6]
[1735583976187,12.69105841,194.38,194.2,3.6]
[1735583976383,12.69105841,194.35,194.21,12.69105841]
[1735583976585,2.5761,194.29,194.23,2.5769]
[1735583976784,12.69105841,194.32,194.21,12.69105841]
[1735583976985,12.69105841,194.32,194.18,17.27005841]
[1735583978091,3.6,194.31,194.21,12.69105841]
[1735583978482,3.6,194.34,194.24,12.69105841]
[1735583978887,3.6,194.34,194.3,2.576]
[1735583979083,3.6,194.34,194.24,12.69105841]
[1735583979290,1.6014,194.37,194.24,12.69105841]
[1735583979490,3.6,194.34,194.31,2.5758]
[1735583979682,1.6014,194.37,194.24,12.69105841]
[1735583979887,3.6,194.35,194.24,12.69105841]
[1735583980194,3.6,194.35,194.3,2.5759]
[1735583980388,3.6,194.35,194.24,20.3684196]
[1735583980593,3.6,194.39,194.27,20.3684196]
[1735583980791,3.6,194.4,194.28,4.6979]
[1735583981688,20.3684196,194.45,194.28,4.6979]
[1735583981689,3.6,194.44,194.3,20.3684196]
[1735583982890,6.1742,194.44,194.37,2.5749]
[1735583983088,6.1742,194.44,194.3,20.3684196]
[1735583983298,20.3684196,194.48,194.3,20.3684196]
[1735583983490,2.5741,194.45,194.3,20.3684196]
[1735583984795,2.5741,194.45,194.39,2.5748]
[1735583985294,3.6,194.47,194.34,20.3684196]
[1735583986495,2.5739,194.46,194.4,2.5747]
[1735583987693,2.574,194.45,194.4,2.5747]
[1735583988193,3.6,194.47,194.38,2.5749]
[1735583988499,3.6,194.47,194.34,20.3684196]
[1735583988702,20.3684196,194.48,194.34,20.3684196]
[1735583988906,3.6,194.47,194.34,20.3684196]
[1735583989787,2.5744,194.43,194.35,2.5753]
[1735583989993,20.3684196,194.45,194.31,20.3684196]
[1735583990391,2.5746,194.41,194.36,2.5752]
[1735583990689,3.6,194.4,194.36,2.5752]
[1735583991594,20.3684196,194.48,194.39,2.5747]
[1735583991791,3.6,194.47,194.31,20.3684196]
[1735583992893,2.5743,194.43,194.39,2.5747]
[1735583993592,20.3684196,194.48,194.28,8.2979]
[1735583993795,1.5208,194.52,194.28,8.2979]
[1735583993796,4.4471,194.52,194.37,20.3684196]
[1735583994095,4.4471,194.52,194.38,1.4784]
[1735583994296,7.14987604,194.54,194.4,20.3684196]
[1735583994487,3.6,194.53,194.4,20.3684196]
[1735583994790,6.173,194.53,194.43,2.5742]
[1735583994995,6.173,194.53,194.4,20.3684196]
[1735583995298,3.6,194.53,194.4,20.3684196]
[1735583995598,6.173,194.53,194.47,2.5736]
[1735583995792,1.4669,194.56,194.43,20.3684196]
[1735583995997,3.6,194.55,194.46,20.3684196]
[1735583996297,3.6,194.55,194.5,2.5732]
[1735583997297,3.6,194.55,194.41,3.6]
[1735583997492,3.6,194.55,194.42,4.73]
[1735583998988,20.3684196,194.57,194.46,2.5738]
[1735583998989,2.5732,194.52,194.46,2.5738]
[1735583999589,2.5732,194.52,194.45,2.574]
[1735583999793,2.5732,194.52,194.42,4.73]
[1735584000191,246.14302418,194.7,194.49,20.3684196]
[1735584000494,246.14302418,194.7,194.53,20.3684196]
[1735584000688,246.14302418,194.7,194.54,3.0572]
[1735584000893,59.77020835,194.67,194.6,2.572]
[1735584001300,57.19900835,194.67,194.6,2.572]
[1735584001904,103.69284171,194.7,194.6,2.572]
[1735584002202,2.5711,194.67,194.6,2.572]
[1735584002395,103.69284171,194.7,194.6,2.572]
[1735584002590,103.69284171,194.7,194.54,3.0572]
[1735584002591,20.3684196,194.68,194.54,3.0572]
[1735584002798,20.3684196,194.65,194.54,1.545]
[1735584003004,3.6,194.64,194.54,1.545]
[1735584003500,3.6,194.64,194.54,2.5728]
[1735584003696,5.2153,194.63,194.5,20.3684196]
[1735584003899,20.3684196,194.62,194.5,2.5733]
[1735584004097,21.9292196,194.62,194.5,2.5733]
[1735584004298,1.5186,194.61,194.5,2.5733]
[1735584004502,1.5186,194.61,194.47,1.5496]
[1735584004700,2.5726,194.56,194.51,2.5732]
[1735584004901,6.1726,194.56,194.51,2.5732]
[1735584005601,1.5186,194.61,194.47,1.5496]
[1735584005798,3.6,194.6,194.47,21.9180196]
[1735584006198,2.5727,194.55,194.47,21.9180196]
[1735584007600,2.5727,194.55,194.44,20.3684196]
[1735584007805,3.6,194.54,194.47,2.5736]
[1735584008009,3.6,194.54,194.41,20.3684196]
[1735584008202,1.5871,194.53,194.41,20.3684196]
[1735584008503,1.5871,194.53,194.4,2.9923]
[1735584008701,1.5849,194.52,194.37,20.3684196]
[1735584009101,1.5409,194.51,194.4,2.5746]
[1735584009608,1.5409,194.51,194.37,20.3684196]
[1735584010607,2.5736,194.48,194.44,2.5741]
[1735584011302,2.5736,194.48,194.35,7.49037975]
[1735584011303,5.1849,194.52,194.4,20.3684196]
[1735584011503,5.1849,194.52,194.41,3.1525]
[1735584011708,3.6,194.52,194.41,3.1525]
[1735584011902,6.1731,194.52,194.41,4.7586]
[1735584012305,6.1731,194.52,194.46,2.5738]
[1735584012907,3.6,194.52,194.43,2.5742]
[1735584013705,2.5736,194.48,194.44,2.5741]
[1735584014409,3.6,194.52,194.41,3.1525]
[1735584014806,6.1731,194.52,194.44,2.5741]
[1735584015004,6.1731,194.52,194.41,3.1525]
[1735584015005,3.6,194.52,194.41,3.1525]
[1735584015609,3.6,194.52,194.47,2.5737]
[1735584015610,2.5733,194.51,194.47,2.5737]
[1735584016412,6.1731,194.52,194.44,2.5741]
[1735584016611,3.6,194.52,194.41,3.1525]
[1735584017110,3.6,194.52,194.43,2.5741]
[1735584017305,3.6,194.52,194.37,20.3684196]
[1735584017509,2.5739,194.47,194.42,2.5744]
[1735584017712,3.6,194.52,194.37,20.3684196]
[1735584017907,3.6,194.52,194.4,20.3684196]
[1735584019203,2.5734,194.5,194.46,2.5738]
[1735584019405,3.6,194.52,194.46,2.5738]
[1735584019715,2.5734,194.5,194.4,20.3684196]
[1735584020013,3.6,194.52,194.47,2.5737]
[1735584020213,2.5734,194.5,194.41,1.5497]
[1735584020412,3.6,194.52,194.41,1.5497]
[1735584020706,3.6,194.52,194.36,3.0603]
[1735584020911,2.5741,194.45,194.41,2.5744]
[1735584021111,3.6,194.46,194.36,3.0603]
[1735584021314,3.6,194.45,194.36,3.0603]
[1735584021510,2.5743,194.44,194.36,3.0603]
[1735584022215,2.5743,194.44,194.36,15.77854423]
[1735584022615,2.5743,194.44,194.4,2.5746]
[1735584023004,2.5743,194.44,194.36,15.77854423]
[1735584023213,3.6,194.45,194.34,1.5497]
[1735584023413,12.71824423,194.46,194.34,1.5497]
[1735584023616,2.5746,194.41,194.37,2.575]
[1735584025015,2.5746,194.41,194.34,1.5497]
[1735584025315,5.105,194.45,194.39,2.5748]
[1735584026110,5.105,194.45,194.35,12.71824423]
[1735584026415,9.69798215,194.49,194.38,12.71824423]
[1735584026619,6.1736,194.49,194.45,2.5739]
[1735584026917,3.6,194.49,194.45,2.5739]
[1735584027607,2.5737,194.48,194.44,2.5741]
[1735584028114,2.5738,194.47,194.44,2.5741]
[1735584029519,16.31824423,194.49,194.39,1.5067]
[1735584029718,12.71824423,194.46,194.35,1.4722]
[1735584029921,12.71824423,194.43,194.34,1.5497]
[1735584030108,2.575,194.38,194.34,1.5497]
[1735584030718,3.6,194.42,194.34,1.5497]
[1735584031321,3.6,194.42,194.3,1.5888]
[1735584031618,3.6,194.42,194.32,12.71824423]
[1735584031823,2.5746,194.41,194.37,2.575]
[1735584032213,3.6,194.42,194.29,1.5614]
[1735584032414,20.36435525,194.4,194.3,2.5759]
[1735584032814,2.5757,194.33,194.28,2.5762]
[1735584033008,3.6,194.35,194.28,2.5762]
[1735584033412,3.6,194.35,194.24,1.5042]
[1735584033413,2.5759,194.31,194.26,2.5764]
[1735584033819,2.5759,194.31,194.24,1.5042]
[1735584033820,3.6,194.35,194.24,1.5042]
[1735584034023,2.5757,194.32,194.24,1.5042]
[1735584034622,2.5756,194.33,194.27,2.5763]
[1735584035324,2.5756,194.33,194.24,1.5042]
[1735584035521,2.5756,194.33,194.28,2.5763]
[1735584036517,3.6,194.35,194.25,20.36435525]
[1735584036720,3.6,194.35,194.25,23.33825525]
[1735584036921,3.6,194.35,194.32,2.5756]
[1735584037526,3.6,194.35,194.25,23.33825525]
[1735584037720,3.6,194.35,194.25,2.9739]
[1735584038321,3.6,194.35,194.3,2.5759]
[1735584038322,6.1754,194.35,194.3,2.5759]
[1735584039615,3.6,194.35,194.31,2.5758]
[1735584040222,2.5752,194.36,194.25,2.9739]
[1735584040420,2.5752,194.36,194.32,2.5757]
[1735584041123,3.6,194.37,194.25,2.9739]
[1735584041124,2.5754,194.35,194.25,2.9739]
[1735584041325,2.5754,194.35,194.31,2.5757]
[1735584041521,2.5754,194.35,194.25,2.9739]
[1735584041717,2.5752,194.36,194.33,2.5756]
[1735584041919,20.36435525,194.4,194.25,2.9739]
[1735584042119,20.36435525,194.43,194.25,2.9739]
[1735584042319,8.69093908,194.44,194.3,20.36435525]
[1735584042625,10.71493908,194.45,194.33,20.36435525]
[1735584042826,10.71493908,194.45,194.37,2.575]
[1735584042827,13.28893908,194.45,194.37,2.575]
[1735584043025,13.28893908,194.45,194.34,3.2143]
[1735584043720,6.174,194.45,194.4,2.5746]
[1735584045024,3.6,194.45,194.34,1.6121]
[1735584045324,20.36435525,194.43,194.28,1.6022]
[1735584046230,2.5751,194.38,194.34,2.5754]
[1735584046423,6.1751,194.38,194.34,2.5754]
[1735584046618,3.6,194.38,194.28,1.6022]
[1735584046826,3.6,194.38,194.37,2.5751]
[1735584048032,3.6,194.38,194.28,1.6022]
[1735584048224,3.6,194.38,194.29,20.36435525]
[1735584049129,3.6,194.41,194.29,20.36435525]
[1735584050223,3.6,194.41,194.38,2.5748]
[1735584051129,3.6,194.41,194.29,20.36435525]
[1735584051527,87.84444163,194.49,194.33,20.36435525]
[1735584051728,3.6,194.48,194.33,23.96435525]
[1735584051938,3.6,194.47,194.34,1.6007]
[1735584052130,6.1738,194.47,194.35,1.5137]
[1735584052826,2.5739,194.46,194.42,2.5744]
[1735584053330,3.6,194.47,194.35,1.5137]
[1735584053628,2.5742,194.44,194.35,1.5137]
[1735584053830,3.6,194.47,194.35,1.5137]
[1735584054032,2.5748,194.4,194.36,2.5751]
[1735584054233,2.5748,194.4,194.3,1.4834]
[1735584054442,3.6,194.41,194.3,1.4834]
[1735584054632,2.575,194.38,194.3,1.4834]
[1735584055238,2.575,194.38,194.34,2.5754]
[1735584056234,3.6,194.41,194.3,1.4834]
[1735584056437,2.5751,194.37,194.3,1.4834]
[1735584057346,2.5751,194.37,194.32,2.5757]
[1735584057648,2.5751,194.37,194.3,1.4834]
[1735584058542,2.5751,194.37,194.33,2.5756]
[1735584058841,2.5751,194.37,194.3,1.4834]
[1735584059046,1.5474,194.4,194.3,1.4834]
[1735584059244,3.6,194.41,194.3,1.4834]
[1735584059751,7.11493908,194.43,194.31,23.96435525]
[1735584060337,2.5747,194.4,194.34,2.5754]
[1735584060549,7.11493908,194.43,194.31,23.96435525]
[1735584060744,3.6,194.44,194.31,23.96435525]
[1735584061047,3.6,194.44,194.3,1.4834]
[1735584061235,20.36435525,194.42,194.3,1.4834]
[1735584061440,20.36435525,194.39,194.19,12.0678317]
[1735584061643,2.5759,194.33,194.28,2.5765]
[1735584061849,6.6865,194.38,194.21,8.1901]
[1735584062049,1.552,194.37,194.21,8.1901]
[1735584062250,2.5757,194.34,194.21,4.5901]
[1735584062543,1.552,194.37,194.21,4.5901]
[1735584062945,20.36435525,194.36,194.21,4.5901]
[1735584063348,2.5765,194.28,194.24,2.577]
[1735584063545,3.6,194.29,194.24,2.577]
[1735584063745,3.6,194.29,194.21,3.1041]
[1735584063944,3.6,194.29,194.25,2.5769]
[1735584064144,3.6,194.29,194.21,3.1041]
[1735584064344,2.5767,194.27,194.22,2.5773]
[1735584064549,3.6,194.29,194.14,21.85355525]
[1735584064753,3.6,194.29,194.14,24.85665525]
[1735584065149,6.1764,194.29,194.14,24.85665525]
[1735584065750,6.1764,194.29,194.23,2.5771]
[1735584066047,2.5768,194.26,194.14,24.85665525]
[1735584066255,2.5768,194.26,194.21,2.5774]
[1735584066451,2.5767,194.27,194.21,2.5774]
[1735584066852,5.0918,194.29,194.17,20.36435525]
[1735584067049,7.6683,194.29,194.17,20.36435525]
[1735584067249,5.0918,194.29,194.21,2.5774]
[1735584067447,2.5769,194.26,194.21,2.5774]
[1735584067647,2.5769,194.26,194.14,24.85665525]
[1735584067648,5.0918,194.29,194.14,24.85665525]
[1735584068052,7.6682,194.29,194.14,24.85665525]
[1735584068250,3.6,194.3,194.17,20.36435525]
[1735584068762,3.6,194.32,194.2,20.36435525]
[1735584068956,3.6,194.32,194.24,2.5769]
[1735584069161,2.5772,194.23,194.14,4.4923]
[1735584069463,3.6,194.23,194.14,3.0031]
[1735584069661,2.5776,194.2,194.1,20.36435525]
[1735584070160,3.6,194.23,194.09,2.9785]
[1735584070358,3.6,194.23,194.13,2.5785]
[1735584070561,3.6,194.23,194.09,2.9785]
[1735584071163,3.6,194.23,194.16,2.5781]
[1735584073463,3.6,194.23,194.09,2.9785]
[1735584073762,3.6,194.23,194.1,20.36435525]
[1735584073958,1.4928,194.26,194.13,20.36435525]
[1735584074164,7.11493908,194.28,194.13,23.96435525]
[1735584074468,7.11493908,194.28,194.16,20.36435525]
[1735584074469,3.6,194.28,194.16,20.36435525]
[1735584074669,5.1774,194.32,194.19,20.36435525]
[1735584074966,3.6,194.32,194.2,6.75]
[1735584075157,3.6,194.32,194.25,2.5768]
[1735584075355,3.6,194.32,194.2,6.75]
[1735584075659,2.5762,194.31,194.26,2.5767]
[1735584076057,6.176,194.32,194.26,2.5767]
[1735584076259,3.6,194.32,194.26,2.5767]
[1735584076669,2.5763,194.3,194.24,2.577]
[1735584076861,3.6,194.32,194.2,3.15]
[1735584077263,6.176,194.32,194.26,2.5767]
[1735584077566,3.6,194.32,194.26,2.5767]
[1735584078368,2.5761,194.31,194.2,3.15]
[1735584078563,3.6,194.32,194.27,2.5765]
[1735584078957,3.6,194.32,194.2,3.15]
[1735584080171,3.6,194.33,194.2,3.15]
[1735584080469,3.6,194.33,194.3,2.5762]
[1735584080665,2.5756,194.35,194.3,2.5762]
[1735584081168,3.6,194.35,194.22,23.96435525]
[1735584081366,3.6,194.35,194.3,2.5762]
[1735584081672,23.96435525,194.35,194.2,3.15]
[1735584081867,2.5763,194.3,194.2,3.15]
[1735584082169,23.96435525,194.35,194.2,3.15]
[1735584082367,3.6,194.35,194.2,3.15]
[1735584082869,2.5761,194.32,194.2,3.15]
[1735584083266,2.5764,194.29,194.24,2.577]
[1735584083479,3.6,194.29,194.2,3.15]
[1735584083862,6.1764,194.29,194.22,2.5772]
[1735584084172,6.1764,194.29,194.2,3.15]
[1735584084372,6.1764,194.29,194.24,2.577]
[1735584085370,3.6,194.29,194.25,2.5769]
[1735584085968,3.6,194.29,194.24,2.577]
[1735584086174,3.6,194.29,194.2,3.15]
[1735584086472,2.5767,194.27,194.2,3.15]
[1735584086677,2.5767,194.27,194.22,2.5772]
[1735584087372,2.5767,194.27,194.23,2.5772]
[1735584087764,3.6,194.29,194.2,3.15]
[1735584088166,3.6,194.33,194.2,23.51435525]
[1735584088371,6.1759,194.33,194.23,2.5771]
[1735584088574,6.1759,194.33,194.2,27.09435525]
[1735584088769,3.6,194.33,194.2,27.09435525]
[1735584088972,60.00601271,194.37,194.2,27.09435525]
[1735584088973,6.1557,194.34,194.2,27.09435525]
[1735584089273,3.58,194.34,194.2,27.09435525]
[1735584089474,3.58,194.34,194.2,23.51435525]
[1735584089669,3.58,194.34,194.16,3.58]
[1735584089670,20.36435525,194.31,194.16,3.58]
[1735584089870,1.5639,194.3,194.15,3.0685]
[1735584090272,2.5768,194.26,194.21,2.5774]
[1735584090474,6.1568,194.26,194.21,2.5774]
[1735584090674,2.5769,194.25,194.2,2.5775]
[1735584090874,3.58,194.26,194.15,15.8120516]
[1735584091676,3.58,194.26,194.18,12.7435516]
[1735584091871,1.5639,194.3,194.26,2.5767]
[1735584092072,3.58,194.31,194.21,12.7435516]
[1735584092267,3.58,194.31,194.3,2.5763]
[1735584093178,3.58,194.31,194.29,2.5763]
[1735584093779,2.5758,194.34,194.3,2.5762]
[1735584094167,2.5758,194.34,194.23,3.0421]
[1735584094774,2.5758,194.34,194.29,2.5763]
[1735584095673,2.5758,194.34,194.3,2.5762]
[1735584097976,2.5763,194.3,194.27,2.5766]
[1735584098180,3.58,194.29,194.16,4.7944]
[1735584098871,2.5765,194.28,194.16,4.7944]
[1735584099275,2.5765,194.28,194.23,2.5771]
[1735584099779,3.58,194.29,194.19,2.5776]
[1735584099979,3.58,194.29,194.16,4.7944]
[1735584100376,3.58,194.29,194.18,20.37699879]
[1735584100578,3.58,194.33,194.19,5.1555]
[1735584100776,28.45975634,194.34,194.22,20.37699879]
[1735584101177,3.58,194.37,194.22,20.37699879]
[1735584101780,2.5755,194.36,194.22,20.37699879]
[1735584101982,3.58,194.37,194.22,20.37699879]
[1735584102681,3.58,194.37,194.32,2.5759]
[1735584102682,6.1554,194.37,194.32,2.5759]
[1735584104687,2.575,194.4,194.35,2.5756]
[1735584104887,6.155,194.4,194.35,2.5756]
[1735584105081,2.575,194.4,194.35,2.5756]
[1735584105287,7.11493908,194.41,194.39,2.575]
[1735584105487,28.45975634,194.44,194.3,20.37699879]
[1735584105989,31.03415634,194.44,194.3,20.37699879]
[1735584106183,28.45975634,194.44,194.3,20.37699879]
[1735584106586,2.5744,194.45,194.39,2.575]
[1735584106790,2.5744,194.45,194.32,3.58]
[1735584108485,2.5744,194.45,194.4,2.5748]
[1735584109287,2.5745,194.43,194.31,3.58]
[1735584109883,2.5744,194.44,194.39,2.575]
[1735584110085,3.58,194.46,194.31,3.58]
[1735584110600,6.1542,194.46,194.4,2.5748]
[1735584111185,20.37699879,194.48,194.34,20.37699879]
[1735584111390,23.95699879,194.48,194.35,4.6717]
[1735584111993,20.37699879,194.48,194.35,4.6717]
[1735584112297,20.37699879,194.48,194.44,2.5743]
[1735584113095,22.95089879,194.48,194.44,2.5743]
[1735584114190,2.5739,194.48,194.44,2.5743]
[1735584114388,15.29161191,194.48,194.44,2.5743]
[1735584117898,12.71771191,194.48,194.44,2.5743]
[1735584118104,2.574,194.47,194.44,2.5743]
[1735584119491,15.29131191,194.51,194.47,2.574]
[1735584119900,15.29131191,194.51,194.38,16.29771191]
[1735584119901,12.71771191,194.51,194.38,16.29771191]
[1735584120101,3.58,194.5,194.38,16.29771191]
[1735584121002,2.574,194.48,194.44,2.5743]
[1735584121499,3.58,194.5,194.44,2.5743]
[1735584121701,2.574,194.47,194.44,2.5743]
[1735584122700,12.71771191,194.48,194.38,12.71771191]
[1735584122901,2.574,194.47,194.44,2.5743]
[1735584123099,12.71771191,194.45,194.35,4.6717]
[1735584123306,12.71771191,194.42,194.3,12.71771191]
[1735584123708,12.71771191,194.39,194.28,3.89235397]
[1735584123907,2.5757,194.34,194.29,2.5764]
[1735584124104,3.58,194.35,194.24,12.71771191]
[1735584124603,2.5757,194.34,194.24,12.71771191]
[1735584125507,3.58,194.35,194.24,12.71771191]
[1735584125704,6.1556,194.35,194.24,12.71771191]
[1735584126507,2.5758,194.34,194.28,2.5764]
[1735584128805,2.5758,194.34,194.29,2.5764]
[1735584130404,2.5758,194.34,194.24,12.71771191]
[1735584130607,2.5758,194.34,194.3,2.5762]
[1735584131208,3.58,194.35,194.28,2.5765]
[1735584131409,12.71771191,194.33,194.22,3.0782]
[1735584131610,12.71771191,194.3,194.18,12.71771191]
[1735584131810,2.5769,194.26,194.18,12.71771191]
[1735584132708,2.5769,194.26,194.21,2.5773]
[1735584133109,12.71771191,194.27,194.16,4.5499]
[1735584133304,12.71771191,194.24,194.07,3.58]
[1735584133507,2.5775,194.21,194.11,12.71771191]
[1735584133909,1.4834,194.26,194.14,12.71771191]
[1735584134110,6.1568,194.27,194.17,12.71771191]
[1735584134313,3.58,194.27,194.17,12.71771191]
[1735584134613,2.577,194.25,194.15,1.581]
[1735584134910,16.29771191,194.27,194.18,2.5778]
[1735584135413,16.29771191,194.27,194.15,1.581]
[1735584136215,2.5769,194.25,194.15,1.581]
[1735584136714,2.5769,194.25,194.19,2.5776]
[1735584137917,2.5769,194.25,194.15,1.581]
[1735584138117,2.5769,194.25,194.2,2.5776]
[1735584139519,2.5774,194.22,194.18,2.5777]
[1735584139724,3.58,194.21,194.11,12.71771191]
[1735584139914,16.29771191,194.21,194.09,1.4738]
[1735584140115,2.5779,194.18,194.14,2.5784]
[1735584144618,12.71771191,194.15,194.11,2.5787]
[1735584144919,12.71771191,194.15,194.06,1.5826]
[1735584144920,3.58,194.14,194.05,61.21519095]
[1735584145117,15.29651191,194.12,194.08,2.5791]
[1735584145416,12.71771191,194.12,193.96,3.0482]
[1735584145616,12.71771191,194.12,193.98,12.71771191]
[1735584146021,12.71771191,194.09,193.98,12.71771191]
[1735584146220,12.71771191,194.09,193.96,3.0482]
[1735584146221,2.5793,194.07,194.02,2.5799]
[1735584146713,3.58,194.08,194.0,2.5801]
[1735584146714,2.5796,194.06,194.0,2.5801]
[1735584147126,3.58,194.08,193.96,3.0482]
[1735584147317,3.58,194.08,193.99,2.5802]
[1735584147318,2.5798,194.04,193.99,2.5802]
[1735584147518,12.71771191,194.06,193.96,3.0482]
[1735584147716,12.71771191,194.06,193.94,1.5025]
[1735584147916,2.5797,194.04,193.97,2.5806]
[1735584148126,2.5797,194.04,193.94,1.5025]
[1735584148521,6.1589,194.1,193.95,16.29771191]
[1735584148727,18.87661191,194.1,193.95,16.29771191]
[1735584149432,18.87661191,194.1,194.04,2.5796]
[1735584150325,16.29771191,194.1,194.07,2.5793]
[1735584150531,3.58,194.15,194.04,12.71771191]
[1735584151132,3.0821,194.19,194.07,12.71771191]
[1735584151722,12.71771191,194.17,194.05,1.4994]